[Event "Titled Tuesday Blitz July 18 Early 2023"]
[White "Bochnicka, Vladimir"]
[Black "rikchessmx"]
[WhiteFideId "14943450"]
[WhiteElo "2448"]
[BlackElo "2257"]
[Result "1-0"]
[Round "5"]
[TimeControl "180+2"]
[Date "2023.07.18"]
[WhiteClock "0:00:30"]
[BlackClock "0:00:00"]
[Board "166"]

1. e4 {[%clk 0:03:00]}  c5 {[%clk 0:02:57]} 2. Nf3 {[%clk 0:03:01]}  e6 {[%clk 0:02:56]} 3. g3 {[%clk 0:03:01]}  Nc6 {[%clk 0:02:55]} 4. Bg2 {[%clk 0:03:01]}  h5 {[%clk 0:02:54]} 5. h4 {[%clk 0:02:55]}  Nf6 {[%clk 0:02:53]} 6. d3 {[%clk 0:02:46]}  d6 {[%clk 0:02:47]} 7. O-O {[%clk 0:02:45]}  Ng4 {[%clk 0:02:46]} 8. c3 {[%clk 0:02:42]}  Be7 {[%clk 0:02:44]} 9. d4 {[%clk 0:02:40]}  Qc7 {[%clk 0:02:40]} 10. Re1 {[%clk 0:02:33]}  a6 {[%clk 0:02:17]} 11. a4 {[%clk 0:02:33]}  b6 {[%clk 0:02:16]} 12. Na3 {[%clk 0:02:33]}  Bb7 {[%clk 0:02:16]} 13. d5 {[%clk 0:02:22]}  Nd8 {[%clk 0:02:12]} 14. dxe6 {[%clk 0:02:19]}  Nxe6 {[%clk 0:02:11]} 15. Nc4 {[%clk 0:02:05]}  O-O {[%clk 0:02:08]} 16. a5 {[%clk 0:02:01]}  b5 {[%clk 0:02:06]} 17. Nb6 {[%clk 0:02:01]}  Rad8 {[%clk 0:02:04]} 18. Nd5 {[%clk 0:02:01]}  Bxd5 {[%clk 0:02:03]} 19. exd5 {[%clk 0:02:01]}  Nd4 {[%clk 0:01:56]} 20. cxd4 {[%clk 0:02:00]}  c4 {[%clk 0:01:56]} 21. Bd2 {[%clk 0:01:56]}  Bf6 {[%clk 0:01:53]} 22. Bg5 {[%clk 0:01:47]}  Bxg5 {[%clk 0:01:50]} 23. Nxg5 {[%clk 0:01:48]}  Rfe8 {[%clk 0:01:40]} 24. Qc2 {[%clk 0:01:44]}  g6 {[%clk 0:01:36]} 25. Qd2 {[%clk 0:01:38]}  Kg7 {[%clk 0:01:26]} 26. Bf3 {[%clk 0:01:33]}  Nf6 {[%clk 0:01:25]} 27. Ne4 {[%clk 0:01:30]}  Nxd5 {[%clk 0:01:20]} 28. Qg5 {[%clk 0:01:28]}  Nb4 {[%clk 0:01:08]} 29. Nf6 {[%clk 0:01:21]}  Rxe1+ {[%clk 0:01:06]} 30. Rxe1 {[%clk 0:01:22]}  Nd3 {[%clk 0:01:03]} 31. Re7 {[%clk 0:01:21]}  Qxe7 {[%clk 0:00:40]} 32. Nxh5+ {[%clk 0:01:19]}  Kf8 {[%clk 0:00:40]} 33. Qh6+ {[%clk 0:01:20]}  Ke8 {[%clk 0:00:40]} 34. Bc6+ {[%clk 0:01:20]}  Rd7 {[%clk 0:00:39]} 35. Qh8+ {[%clk 0:01:16]}  Qf8 {[%clk 0:00:39]} 36. Bxd7+ {[%clk 0:01:16]}  Ke7 {[%clk 0:00:39]} 37. Qxf8+ {[%clk 0:01:08]}  Kxf8 {[%clk 0:00:39]} 38. Nf4 {[%clk 0:00:59]}  Nxb2 {[%clk 0:00:38]} 39. Bc8 {[%clk 0:00:56]}  c3 {[%clk 0:00:38]} 40. Bxa6 {[%clk 0:00:54]}  c2 {[%clk 0:00:38]} 41. Ne2 {[%clk 0:00:54]}  b4 {[%clk 0:00:34]} 42. Bb5 {[%clk 0:00:48]}  b3 {[%clk 0:00:32]} 43. a6 {[%clk 0:00:48]}  Na4 {[%clk 0:00:28]} 44. a7 {[%clk 0:00:26]}  Nb6 {[%clk 0:00:27]} 45. Bd3 {[%clk 0:00:26]}  d5 {[%clk 0:00:25]} 46. Kf1 {[%clk 0:00:25]}  Ke7 {[%clk 0:00:25]} 47. Ke1 {[%clk 0:00:25]}  Kd6 {[%clk 0:00:26]} 48. Kd2 {[%clk 0:00:26]}  Kc7 {[%clk 0:00:26]} 49. Kc3 {[%clk 0:00:26]}  Kb7 {[%clk 0:00:25]} 50. Kxb3 {[%clk 0:00:26]}  Kxa7 {[%clk 0:00:25]} 51. Kxc2 {[%clk 0:00:27]}  Kb7 {[%clk 0:00:26]} 52. g4 {[%clk 0:00:27]}  Kc7 {[%clk 0:00:26]} 53. h5 {[%clk 0:00:28]}  gxh5 {[%clk 0:00:25]} 54. gxh5 {[%clk 0:00:29]}  Nd7 {[%clk 0:00:25]} 55. h6 {[%clk 0:00:30]}  Nf6 {[%clk 0:00:25]} 56. h7 {[%clk 0:00:30]}  Nxh7 {[%clk 0:00:00]} 57. Bxh7 {[%clk 0:00:30]} 1-0


[Site "https://www.chess.com"]

[Event "Titled Tuesday Blitz July 18 Early 2023"]
[White "Baches Garcia, Guillermo"]
[Black "laimis61"]
[WhiteFideId "2209764"]
[WhiteElo "2437"]
[BlackElo "2234"]
[Result "0-1"]
[Round "5"]
[TimeControl "180+2"]
[Date "2023.07.18"]
[WhiteClock "0:00:26"]
[BlackClock "0:01:20"]
[Board "169"]

1. e4 {[%clk 0:03:00]}  d6 {[%clk 0:02:58]} 2. d4 {[%clk 0:03:00]}  Nf6 {[%clk 0:02:57]} 3. f3 {[%clk 0:03:00]}  e5 {[%clk 0:02:54]} 4. Ne2 {[%clk 0:03:01]}  Nc6 {[%clk 0:02:50]} 5. Be3 {[%clk 0:03:00]}  Be7 {[%clk 0:02:47]} 6. c4 {[%clk 0:02:59]}  O-O {[%clk 0:02:40]} 7. Nbc3 {[%clk 0:02:59]}  exd4 {[%clk 0:02:36]} 8. Nxd4 {[%clk 0:02:59]}  Nxd4 {[%clk 0:02:35]} 9. Qxd4 {[%clk 0:02:58]}  Be6 {[%clk 0:02:35]} 10. Be2 {[%clk 0:02:53]}  Nd7 {[%clk 0:02:33]} 11. O-O {[%clk 0:02:52]}  Bf6 {[%clk 0:02:32]} 12. Qd2 {[%clk 0:02:51]}  a5 {[%clk 0:02:22]} 13. f4 {[%clk 0:02:39]}  Nc5 {[%clk 0:02:19]} 14. Qc2 {[%clk 0:02:29]}  Re8 {[%clk 0:02:08]} 15. Rad1 {[%clk 0:02:22]}  b6 {[%clk 0:01:56]} 16. e5 {[%clk 0:02:17]}  Be7 {[%clk 0:01:53]} 17. f5 {[%clk 0:02:15]}  Bd7 {[%clk 0:01:51]} 18. f6 {[%clk 0:02:00]}  Bf8 {[%clk 0:01:50]} 19. Bxc5 {[%clk 0:01:52]}  bxc5 {[%clk 0:01:47]} 20. exd6 {[%clk 0:01:49]}  Bxd6 {[%clk 0:01:43]} 21. Bd3 {[%clk 0:01:35]}  g6 {[%clk 0:01:40]} 22. Ne4 {[%clk 0:01:33]}  Bc6 {[%clk 0:01:35]} 23. Rde1 {[%clk 0:01:23]}  Bf8 {[%clk 0:01:32]} 24. Rd1 {[%clk 0:01:16]}  Qd4+ {[%clk 0:01:31]} 25. Kh1 {[%clk 0:01:15]}  Bxe4 {[%clk 0:01:30]} 26. h3 {[%clk 0:00:54]}  Bxd3 {[%clk 0:01:27]} 27. Rxd3 {[%clk 0:00:53]}  Qe4 {[%clk 0:01:23]} 28. Qd2 {[%clk 0:00:26]}  Bd6 {[%clk 0:01:20]} 0-1


[Site "https://www.chess.com"]

[Event "Titled Tuesday Blitz July 18 Early 2023"]
[White "Rosh Jain"]
[Black "Vila Dupla, Aurelio"]
[WhiteFideId "25789465"]
[BlackFideId "2203383"]
[WhiteElo "2419"]
[BlackElo "2206"]
[Result "1-0"]
[Round "5"]
[TimeControl "180+2"]
[Date "2023.07.18"]
[WhiteClock "0:02:45"]
[BlackClock "0:01:33"]
[Board "173"]

1. e4 {[%clk 0:02:59]}  c5 {[%clk 0:02:58]} 2. Nf3 {[%clk 0:02:59]}  d6 {[%clk 0:02:58]} 3. d4 {[%clk 0:03:00]}  cxd4 {[%clk 0:02:58]} 4. Nxd4 {[%clk 0:03:01]}  Nf6 {[%clk 0:02:58]} 5. Nc3 {[%clk 0:03:01]}  g6 {[%clk 0:02:58]} 6. Be3 {[%clk 0:03:00]}  Bg7 {[%clk 0:02:58]} 7. f3 {[%clk 0:03:01]}  O-O {[%clk 0:02:58]} 8. Qd2 {[%clk 0:03:01]}  Nc6 {[%clk 0:02:59]} 9. Bc4 {[%clk 0:03:01]}  Bd7 {[%clk 0:02:58]} 10. Bb3 {[%clk 0:03:01]}  Nxd4 {[%clk 0:02:50]} 11. Bxd4 {[%clk 0:03:00]}  b5 {[%clk 0:02:49]} 12. h4 {[%clk 0:03:00]}  a5 {[%clk 0:02:48]} 13. h5 {[%clk 0:03:00]}  a4 {[%clk 0:02:33]} 14. Bxf6 {[%clk 0:02:48]}  Bxf6 {[%clk 0:02:17]} 15. hxg6 {[%clk 0:02:46]}  axb3 {[%clk 0:01:33]} 16. Qh6 {[%clk 0:02:45]} 1-0


[Site "https://www.chess.com"]

[Event "Titled Tuesday Blitz July 18 Early 2023"]
[White "Mishra, Manoj"]
[Black "Goswami, Vedant"]
[WhiteFideId "5006007"]
[BlackFideId "5003725"]
[WhiteElo "2178"]
[BlackElo "2402"]
[Result "0-1"]
[Round "5"]
[TimeControl "180+2"]
[Date "2023.07.18"]
[WhiteClock "0:00:00"]
[BlackClock "0:00:08"]
[Board "174"]

1. d4 {[%clk 0:02:51]}  g6 {[%clk 0:02:58]} 2. e4 {[%clk 0:02:49]}  Bg7 {[%clk 0:02:58]} 3. h4 {[%clk 0:02:48]}  c5 {[%clk 0:02:55]} 4. c3 {[%clk 0:02:45]}  cxd4 {[%clk 0:02:49]} 5. cxd4 {[%clk 0:02:46]}  d5 {[%clk 0:02:49]} 6. e5 {[%clk 0:02:46]}  h6 {[%clk 0:02:46]} 7. Nc3 {[%clk 0:02:42]}  Nc6 {[%clk 0:02:45]} 8. Be3 {[%clk 0:02:37]}  h5 {[%clk 0:02:16]} 9. Qb3 {[%clk 0:02:30]}  e6 {[%clk 0:02:13]} 10. Nb5 {[%clk 0:02:21]}  Bf8 {[%clk 0:02:06]} 11. a3 {[%clk 0:01:43]}  Nh6 {[%clk 0:02:05]} 12. Bg5 {[%clk 0:01:42]}  Qa5+ {[%clk 0:02:02]} 13. Bd2 {[%clk 0:01:34]}  Qb6 {[%clk 0:02:01]} 14. Nf3 {[%clk 0:01:09]}  Nf5 {[%clk 0:02:00]} 15. Bc3 {[%clk 0:01:02]}  Bd7 {[%clk 0:01:55]} 16. a4 {[%clk 0:01:01]}  Be7 {[%clk 0:01:46]} 17. a5 {[%clk 0:01:00]}  Qd8 {[%clk 0:01:44]} 18. a6 {[%clk 0:00:50]}  b6 {[%clk 0:01:40]} 19. Bd3 {[%clk 0:00:46]}  Kf8 {[%clk 0:01:30]} 20. Bd2 {[%clk 0:00:38]}  Nxh4 {[%clk 0:01:07]} 21. Nxh4 {[%clk 0:00:33]}  Bxh4 {[%clk 0:01:06]} 22. Nd6 {[%clk 0:00:32]}  Be7 {[%clk 0:01:03]} 23. g4 {[%clk 0:00:28]}  Nxd4 {[%clk 0:00:57]} 24. Qc3 {[%clk 0:00:22]}  Nc6 {[%clk 0:00:53]} 25. gxh5 {[%clk 0:00:21]}  Rxh5 {[%clk 0:00:23]} 26. Rxh5 {[%clk 0:00:20]}  gxh5 {[%clk 0:00:23]} 27. Bh6+ {[%clk 0:00:19]}  Kg8 {[%clk 0:00:22]} 28. Ra4 {[%clk 0:00:14]}  Bg5 {[%clk 0:00:17]} 29. Bxg5 {[%clk 0:00:09]}  Qxg5 {[%clk 0:00:17]} 30. Qc2 {[%clk 0:00:04]}  Nxe5 {[%clk 0:00:14]} 31. Bh7+ {[%clk 0:00:03]}  Kh8 {[%clk 0:00:13]} 32. Bd3 {[%clk 0:00:02]}  Qg1+ {[%clk 0:00:11]} 33. Ke2 {[%clk 0:00:01]}  Qg5 {[%clk 0:00:09]} 34. f4 {[%clk 0:00:00]}  Qg2+ {[%clk 0:00:08]} 0-1


[Site "https://www.chess.com"]

[Event "Titled Tuesday Blitz July 18 Early 2023"]
[White "Hoffmann, Asa"]
[Black "Johnson, Ben"]
[WhiteFideId "2001470"]
[BlackFideId "2010917"]
[WhiteElo "2395"]
[BlackElo "2129"]
[Result "1-0"]
[Round "5"]
[TimeControl "180+2"]
[Date "2023.07.18"]
[WhiteClock "0:00:03"]
[BlackClock "0:00:00"]
[Board "175"]

1. d4 {[%clk 0:02:37]}  Nf6 {[%clk 0:02:57]} 2. Bg5 {[%clk 0:02:36]}  d5 {[%clk 0:02:57]} 3. Nd2 {[%clk 0:02:35]}  c5 {[%clk 0:02:53]} 4. e3 {[%clk 0:02:32]}  Nbd7 {[%clk 0:02:40]} 5. c3 {[%clk 0:02:29]}  g6 {[%clk 0:02:29]} 6. f4 {[%clk 0:02:28]}  Bg7 {[%clk 0:02:29]} 7. Ngf3 {[%clk 0:02:28]}  O-O {[%clk 0:02:20]} 8. Bd3 {[%clk 0:02:22]}  b6 {[%clk 0:02:16]} 9. O-O {[%clk 0:02:15]}  Bb7 {[%clk 0:02:17]} 10. Ne5 {[%clk 0:02:14]}  Ne4 {[%clk 0:02:08]} 11. Bxe4 {[%clk 0:02:09]}  dxe4 {[%clk 0:02:08]} 12. Nxd7 {[%clk 0:01:57]}  Qxd7 {[%clk 0:02:07]} 13. Qe1 {[%clk 0:01:54]}  Qg4 {[%clk 0:01:59]} 14. h3 {[%clk 0:01:49]}  Qd7 {[%clk 0:01:52]} 15. Qh4 {[%clk 0:01:49]}  Rfe8 {[%clk 0:01:41]} 16. Bh6 {[%clk 0:01:36]}  Bf6 {[%clk 0:01:40]} 17. Bg5 {[%clk 0:01:36]}  Bg7 {[%clk 0:01:39]} 18. f5 {[%clk 0:01:31]}  cxd4 {[%clk 0:01:32]} 19. cxd4 {[%clk 0:01:30]}  Qb5 {[%clk 0:01:19]} 20. Nxe4 {[%clk 0:01:05]}  Qxb2 {[%clk 0:00:48]} 21. Rae1 {[%clk 0:00:37]}  Qxa2 {[%clk 0:00:39]} 22. Rf2 {[%clk 0:00:16]}  Qd5 {[%clk 0:00:37]} 23. f6 {[%clk 0:00:14]}  Qxe4 {[%clk 0:00:30]} 24. fxg7 {[%clk 0:00:12]}  Qxh4 {[%clk 0:00:28]} 25. Bxh4 {[%clk 0:00:12]}  Kxg7 {[%clk 0:00:27]} 26. Rc2 {[%clk 0:00:11]}  Rac8 {[%clk 0:00:13]} 27. Ra2 {[%clk 0:00:10]}  a5 {[%clk 0:00:12]} 28. Rb1 {[%clk 0:00:10]}  Bd5 {[%clk 0:00:09]} 29. Rab2 {[%clk 0:00:10]}  b5 {[%clk 0:00:07]} 30. Rxb5 {[%clk 0:00:09]}  Be4 {[%clk 0:00:06]} 31. Ra1 {[%clk 0:00:09]}  Bd3 {[%clk 0:00:06]} 32. Rbxa5 {[%clk 0:00:08]}  Be4 {[%clk 0:00:07]} 33. R5a2 {[%clk 0:00:08]}  h6 {[%clk 0:00:05]} 34. Bf2 {[%clk 0:00:07]}  g5 {[%clk 0:00:04]} 35. Rd2 {[%clk 0:00:07]}  f5 {[%clk 0:00:05]} 36. Rad1 {[%clk 0:00:06]}  Rc3 {[%clk 0:00:04]} 37. d5 {[%clk 0:00:06]}  Kf7 {[%clk 0:00:03]} 38. d6 {[%clk 0:00:05]}  exd6 {[%clk 0:00:04]} 39. Rxd6 {[%clk 0:00:05]}  Rc2 {[%clk 0:00:04]} 40. Rd7+ {[%clk 0:00:04]}  Kg6 {[%clk 0:00:03]} 41. R7d6+ {[%clk 0:00:04]}  Kh5 {[%clk 0:00:00]} 42. Rf6 {[%clk 0:00:03]} 1-0


[Site "https://www.chess.com"]

[Event "Titled Tuesday Blitz July 18 Early 2023"]
[White "Horokoskii"]
[Black "Rian, Kapriaga"]
[BlackFideId "7103263"]
[WhiteElo "2126"]
[BlackElo "2384"]
[Result "0-1"]
[Round "5"]
[TimeControl "180+2"]
[Date "2023.07.18"]
[WhiteClock "0:00:00"]
[BlackClock "0:00:21"]
[Board "177"]

1. d4 {[%clk 0:02:55]}  Nf6 {[%clk 0:02:58]} 2. c4 {[%clk 0:02:54]}  e6 {[%clk 0:02:59]} 3. Nc3 {[%clk 0:02:54]}  Bb4 {[%clk 0:02:54]} 4. e3 {[%clk 0:02:53]}  Bxc3+ {[%clk 0:02:52]} 5. bxc3 {[%clk 0:02:52]}  b6 {[%clk 0:02:50]} 6. f3 {[%clk 0:02:52]}  d5 {[%clk 0:02:48]} 7. Bd3 {[%clk 0:02:52]}  O-O {[%clk 0:02:48]} 8. Ne2 {[%clk 0:02:50]}  Nbd7 {[%clk 0:02:46]} 9. O-O {[%clk 0:02:47]}  Bb7 {[%clk 0:02:46]} 10. cxd5 {[%clk 0:02:47]}  exd5 {[%clk 0:02:45]} 11. c4 {[%clk 0:02:37]}  Re8 {[%clk 0:02:41]} 12. cxd5 {[%clk 0:02:35]}  Nxd5 {[%clk 0:02:36]} 13. e4 {[%clk 0:02:33]}  Nb4 {[%clk 0:02:34]} 14. Bb1 {[%clk 0:02:33]}  c5 {[%clk 0:02:28]} 15. d5 {[%clk 0:02:20]}  Ba6 {[%clk 0:02:26]} 16. a3 {[%clk 0:02:13]}  Bxe2 {[%clk 0:02:24]} 17. Qxe2 {[%clk 0:02:13]}  Nxd5 {[%clk 0:02:23]} 18. Qd3 {[%clk 0:02:03]}  N5f6 {[%clk 0:02:21]} 19. Rd1 {[%clk 0:01:59]}  Qe7 {[%clk 0:02:20]} 20. Bb2 {[%clk 0:01:59]}  Rad8 {[%clk 0:02:18]} 21. Qc2 {[%clk 0:01:50]}  h6 {[%clk 0:02:14]} 22. f4 {[%clk 0:01:39]}  Ng4 {[%clk 0:02:02]} 23. e5 {[%clk 0:01:30]}  Nf8 {[%clk 0:02:02]} 24. Rxd8 {[%clk 0:01:23]}  Rxd8 {[%clk 0:02:01]} 25. Qe2 {[%clk 0:01:24]}  Qh4 {[%clk 0:01:31]} 26. h3 {[%clk 0:01:18]}  Nf2 {[%clk 0:01:31]} 27. Bf5 {[%clk 0:00:48]}  Qxf4 {[%clk 0:01:24]} 28. Qxf2 {[%clk 0:00:46]}  Qxf2+ {[%clk 0:01:23]} 29. Kxf2 {[%clk 0:00:43]}  Rd2+ {[%clk 0:01:23]} 30. Ke3 {[%clk 0:00:43]}  Rxb2 {[%clk 0:01:24]} 31. Rd1 {[%clk 0:00:41]}  Rxg2 {[%clk 0:01:19]} 32. Rd8 {[%clk 0:00:40]}  g6 {[%clk 0:01:16]} 33. Bg4 {[%clk 0:00:37]}  Rg3+ {[%clk 0:01:15]} 34. Bf3 {[%clk 0:00:37]}  Rxh3 {[%clk 0:01:14]} 35. Ra8 {[%clk 0:00:36]}  g5 {[%clk 0:01:13]} 36. Kf2 {[%clk 0:00:35]}  h5 {[%clk 0:01:12]} 37. Rxa7 {[%clk 0:00:32]}  Ng6 {[%clk 0:00:57]} 38. e6 {[%clk 0:00:17]}  fxe6 {[%clk 0:00:55]} 39. Rb7 {[%clk 0:00:17]}  Ne5 {[%clk 0:00:52]} 40. Be4 {[%clk 0:00:15]}  Rb3 {[%clk 0:00:45]} 41. a4 {[%clk 0:00:15]}  c4 {[%clk 0:00:44]} 42. a5 {[%clk 0:00:13]}  bxa5 {[%clk 0:00:44]} 43. Re7 {[%clk 0:00:13]}  Rb6 {[%clk 0:00:38]} 44. Ra7 {[%clk 0:00:08]}  Rb5 {[%clk 0:00:28]} 45. Re7 {[%clk 0:00:08]}  Ng4+ {[%clk 0:00:26]} 46. Kg1 {[%clk 0:00:04]}  Re5 {[%clk 0:00:26]} 47. Bf3 {[%clk 0:00:04]}  c3 {[%clk 0:00:24]} 48. Ra7 {[%clk 0:00:02]}  c2 {[%clk 0:00:22]} 49. Rc7 {[%clk 0:00:03]}  Re1+ {[%clk 0:00:21]} 50. Kg2 {[%clk 0:00:00]}  c1=Q {[%clk 0:00:21]} 0-1


[Site "https://www.chess.com"]

[Event "Titled Tuesday Blitz July 18 Early 2023"]
[White "Jegorovas, Aleksandras"]
[Black "campochess"]
[WhiteFideId "12801950"]
[WhiteElo "2381"]
[BlackElo "2126"]
[Result "1-0"]
[Round "5"]
[TimeControl "180+2"]
[Date "2023.07.18"]
[WhiteClock "0:00:58"]
[BlackClock "0:01:19"]
[Board "178"]

1. d4 {[%clk 0:02:55]}  c5 {[%clk 0:02:59]} 2. d5 {[%clk 0:02:54]}  Nf6 {[%clk 0:02:57]} 3. c4 {[%clk 0:02:42]}  g6 {[%clk 0:02:57]} 4. Nc3 {[%clk 0:02:42]}  Bg7 {[%clk 0:02:56]} 5. e4 {[%clk 0:02:42]}  d6 {[%clk 0:02:56]} 6. Bd3 {[%clk 0:01:57]}  Ng4 {[%clk 0:02:47]} 7. Nf3 {[%clk 0:01:56]}  O-O {[%clk 0:02:45]} 8. O-O {[%clk 0:01:56]}  Nd7 {[%clk 0:02:44]} 9. Bf4 {[%clk 0:01:55]}  a6 {[%clk 0:02:42]} 10. Qd2 {[%clk 0:01:54]}  Re8 {[%clk 0:02:40]} 11. h3 {[%clk 0:01:52]}  Nge5 {[%clk 0:02:39]} 12. Nxe5 {[%clk 0:01:52]}  Nxe5 {[%clk 0:02:39]} 13. Be2 {[%clk 0:01:52]}  Bd7 {[%clk 0:02:35]} 14. Bh6 {[%clk 0:01:47]}  Bh8 {[%clk 0:02:34]} 15. f4 {[%clk 0:01:37]}  Nxc4 {[%clk 0:02:32]} 16. Bxc4 {[%clk 0:01:37]}  b5 {[%clk 0:02:32]} 17. Be2 {[%clk 0:01:37]}  c4 {[%clk 0:02:32]} 18. Rae1 {[%clk 0:01:28]}  b4 {[%clk 0:02:29]} 19. Nb1 {[%clk 0:01:26]}  c3 {[%clk 0:02:25]} 20. bxc3 {[%clk 0:01:25]}  bxc3 {[%clk 0:02:25]} 21. Nxc3 {[%clk 0:01:23]}  Rc8 {[%clk 0:02:23]} 22. Nb1 {[%clk 0:01:20]}  Qb6+ {[%clk 0:02:17]} 23. Kh2 {[%clk 0:01:19]}  Qb2 {[%clk 0:02:17]} 24. Qxb2 {[%clk 0:01:16]}  Bxb2 {[%clk 0:02:15]} 25. f5 {[%clk 0:01:15]}  Rc2 {[%clk 0:02:08]} 26. Bd3 {[%clk 0:01:12]}  Be5+ {[%clk 0:02:07]} 27. Bf4 {[%clk 0:01:11]}  Bxf4+ {[%clk 0:02:06]} 28. Rxf4 {[%clk 0:01:11]}  Rxa2 {[%clk 0:02:06]} 29. e5 {[%clk 0:01:08]}  dxe5 {[%clk 0:02:03]} 30. Rxe5 {[%clk 0:01:07]}  g5 {[%clk 0:01:45]} 31. Rg4 {[%clk 0:01:02]}  f6 {[%clk 0:01:45]} 32. Re2 {[%clk 0:01:02]}  h5 {[%clk 0:01:44]} 33. Rd4 {[%clk 0:01:00]}  Rxe2 {[%clk 0:01:33]} 34. Bxe2 {[%clk 0:00:59]}  Bxf5 {[%clk 0:01:31]} 35. Bxh5 {[%clk 0:00:59]}  Bxb1 {[%clk 0:01:19]} 36. Bxe8 {[%clk 0:00:58]} 1-0


[Site "https://www.chess.com"]

[Event "Titled Tuesday Blitz July 18 Early 2023"]
[White "Schain, Randolph"]
[Black "Duarte, Leonardo"]
[WhiteFideId "2003139"]
[BlackFideId "110582"]
[WhiteElo "2106"]
[BlackElo "2378"]
[Result "0-1"]
[Round "5"]
[TimeControl "180+2"]
[Date "2023.07.18"]
[WhiteClock "0:00:00"]
[BlackClock "0:00:03"]
[Board "180"]

1. e4 {[%clk 0:02:59]}  e5 {[%clk 0:02:59]} 2. Nf3 {[%clk 0:02:58]}  Nc6 {[%clk 0:02:59]} 3. Bb5 {[%clk 0:02:58]}  a6 {[%clk 0:02:59]} 4. Ba4 {[%clk 0:02:58]}  Nf6 {[%clk 0:02:58]} 5. O-O {[%clk 0:02:58]}  Be7 {[%clk 0:02:59]} 6. Re1 {[%clk 0:02:56]}  b5 {[%clk 0:02:59]} 7. Bb3 {[%clk 0:02:56]}  O-O {[%clk 0:02:59]} 8. h3 {[%clk 0:02:52]}  d6 {[%clk 0:02:59]} 9. c3 {[%clk 0:02:51]}  Na5 {[%clk 0:02:54]} 10. Bc2 {[%clk 0:02:50]}  c5 {[%clk 0:02:54]} 11. d4 {[%clk 0:02:48]}  Qc7 {[%clk 0:02:55]} 12. Be3 {[%clk 0:02:43]}  cxd4 {[%clk 0:02:47]} 13. cxd4 {[%clk 0:02:41]}  Nc6 {[%clk 0:02:47]} 14. Nc3 {[%clk 0:02:31]}  exd4 {[%clk 0:02:13]} 15. Nxd4 {[%clk 0:02:27]}  Nxd4 {[%clk 0:02:14]} 16. Bxd4 {[%clk 0:02:27]}  Bb7 {[%clk 0:02:14]} 17. Rc1 {[%clk 0:02:19]}  Qd8 {[%clk 0:02:07]} 18. Nd5 {[%clk 0:02:10]}  Nxd5 {[%clk 0:02:04]} 19. exd5 {[%clk 0:02:10]}  Bf6 {[%clk 0:02:05]} 20. Qd3 {[%clk 0:01:57]}  g6 {[%clk 0:02:03]} 21. Bb3 {[%clk 0:01:47]}  Rc8 {[%clk 0:01:54]} 22. Qe3 {[%clk 0:01:35]}  Rxc1 {[%clk 0:01:32]} 23. Rxc1 {[%clk 0:01:33]}  Re8 {[%clk 0:01:33]} 24. Qc3 {[%clk 0:01:28]}  Bxd4 {[%clk 0:01:27]} 25. Qxd4 {[%clk 0:01:28]}  Qg5 {[%clk 0:01:28]} 26. Rc7 {[%clk 0:01:17]}  Bc8 {[%clk 0:01:23]} 27. Qc3 {[%clk 0:00:59]}  Bf5 {[%clk 0:01:00]} 28. Bc2 {[%clk 0:00:48]}  Bxc2 {[%clk 0:00:33]} 29. Qxc2 {[%clk 0:00:48]}  Re1+ {[%clk 0:00:33]} 30. Kh2 {[%clk 0:00:48]}  Qe5+ {[%clk 0:00:19]} 31. g3 {[%clk 0:00:48]}  Re2 {[%clk 0:00:19]} 32. Rc8+ {[%clk 0:00:38]}  Kg7 {[%clk 0:00:20]} 33. Qc3 {[%clk 0:00:31]}  Rxf2+ {[%clk 0:00:20]} 34. Kg1 {[%clk 0:00:30]}  Rxb2 {[%clk 0:00:20]} 35. Qxe5+ {[%clk 0:00:29]}  dxe5 {[%clk 0:00:21]} 36. d6 {[%clk 0:00:27]}  Rd2 {[%clk 0:00:21]} 37. Rc6 {[%clk 0:00:25]}  a5 {[%clk 0:00:21]} 38. Kf1 {[%clk 0:00:24]}  b4 {[%clk 0:00:20]} 39. Ke1 {[%clk 0:00:24]}  Rd5 {[%clk 0:00:20]} 40. Ke2 {[%clk 0:00:21]}  a4 {[%clk 0:00:20]} 41. Ke3 {[%clk 0:00:17]}  Rd4 {[%clk 0:00:20]} 42. Rb6 {[%clk 0:00:09]}  Kf6 {[%clk 0:00:16]} 43. g4 {[%clk 0:00:06]}  Ke6 {[%clk 0:00:14]} 44. g5 {[%clk 0:00:06]}  b3 {[%clk 0:00:04]} 45. axb3 {[%clk 0:00:06]}  axb3 {[%clk 0:00:05]} 46. Rxb3 {[%clk 0:00:06]}  Rxd6 {[%clk 0:00:05]} 47. Rb5 {[%clk 0:00:06]}  Ra6 {[%clk 0:00:05]} 48. Rb3 {[%clk 0:00:02]}  Kf5 {[%clk 0:00:05]} 49. h4 {[%clk 0:00:02]}  Ra4 {[%clk 0:00:04]} 50. Rb7 {[%clk 0:00:02]}  Rxh4 {[%clk 0:00:04]} 51. Rxf7+ {[%clk 0:00:02]}  Kxg5 {[%clk 0:00:05]} 52. Rf8 {[%clk 0:00:01]}  h5 {[%clk 0:00:03]} 53. Kf3 {[%clk 0:00:00]}  Rf4+ {[%clk 0:00:03]} 0-1


[Site "https://www.chess.com"]

[Event "Titled Tuesday Blitz July 18 Early 2023"]
[White "LLariMarc"]
[Black "Topalov, Aleksandar"]
[BlackFideId "925659"]
[WhiteElo "2091"]
[BlackElo "2374"]
[Result "1-0"]
[Round "5"]
[TimeControl "180+2"]
[Date "2023.07.18"]
[WhiteClock "0:01:58"]
[BlackClock "0:00:43"]
[Board "181"]

1. e4 {[%clk 0:03:00]}  e6 {[%clk 0:02:59]} 2. Nf3 {[%clk 0:03:01]}  d5 {[%clk 0:02:58]} 3. e5 {[%clk 0:03:01]}  Ne7 {[%clk 0:02:57]} 4. b3 {[%clk 0:02:52]}  b6 {[%clk 0:02:55]} 5. Bb2 {[%clk 0:02:52]}  Ba6 {[%clk 0:02:54]} 6. Bxa6 {[%clk 0:02:51]}  Nxa6 {[%clk 0:02:54]} 7. O-O {[%clk 0:02:52]}  Qd7 {[%clk 0:02:53]} 8. Nc3 {[%clk 0:02:52]}  c5 {[%clk 0:02:51]} 9. Ne2 {[%clk 0:02:50]}  Nf5 {[%clk 0:02:47]} 10. d4 {[%clk 0:02:50]}  Nb8 {[%clk 0:02:46]} 11. Ng3 {[%clk 0:02:37]}  Nxg3 {[%clk 0:02:45]} 12. hxg3 {[%clk 0:02:37]}  Nc6 {[%clk 0:02:43]} 13. Re1 {[%clk 0:02:35]}  Be7 {[%clk 0:02:42]} 14. Qe2 {[%clk 0:02:33]}  O-O {[%clk 0:02:38]} 15. g4 {[%clk 0:02:33]}  Rac8 {[%clk 0:02:33]} 16. c3 {[%clk 0:02:32]}  cxd4 {[%clk 0:02:32]} 17. cxd4 {[%clk 0:02:33]}  Nb4 {[%clk 0:02:25]} 18. Rec1 {[%clk 0:02:31]}  Rxc1+ {[%clk 0:02:23]} 19. Bxc1 {[%clk 0:02:32]}  Rc8 {[%clk 0:02:22]} 20. a3 {[%clk 0:02:30]}  Nc6 {[%clk 0:02:13]} 21. Bb2 {[%clk 0:02:30]}  Na5 {[%clk 0:02:12]} 22. Qd3 {[%clk 0:02:26]}  h6 {[%clk 0:02:09]} 23. g3 {[%clk 0:02:26]}  Rc7 {[%clk 0:01:59]} 24. Kg2 {[%clk 0:02:26]}  Qc6 {[%clk 0:01:42]} 25. Rc1 {[%clk 0:02:22]}  Qd7 {[%clk 0:01:39]} 26. Rh1 {[%clk 0:02:22]}  f6 {[%clk 0:01:19]} 27. Qg6 {[%clk 0:02:18]}  Rc8 {[%clk 0:01:00]} 28. Rxh6 {[%clk 0:02:14]}  Qe8 {[%clk 0:01:01]} 29. Qh7+ {[%clk 0:02:13]}  Kf7 {[%clk 0:01:00]} 30. exf6 {[%clk 0:01:59]}  Bxf6 {[%clk 0:01:00]} 31. g5 {[%clk 0:01:58]}  Qg8 {[%clk 0:00:43]} 32. Rxf6+ {[%clk 0:01:58]} 1-0


[Site "https://www.chess.com"]